Workbook

Sheet Immersione
A1: Calcolo Immersione secondo lo standard FIPSAS/DAN 2017 | AM1: Rev 2.4
A3: 1^ Immersione | Q3: 18 | R3: 6 | S3: 5 | U3: 2^ Immersione
Q4: 15 | R4: =R3+1 -> 7
A5: Bombola | B5: 10 | C5: l. | R5: =R4+1 -> 8 | U5: Bombola | V5: 15 | W5: l.
A6: Pressione | B6: 200 | C6: atm | R6: 9 | U6: Pressione | V6: 200 | W6: atm
R7: 10
A8: Ora Inizio | B8: 10 | R8: 11 | U8: Ora Inizio | V8: 15 | AI8: =INT(V8)*60 -> 900 | AJ8: =V8-INT(V8) -> 0 | AK8: =AJ8*100 -> 0 | AL8: =AI8+AK8 -> 900
R9: 12 | AD9: =IF(AE9<=0.1,"Prosegue dalla precedente","") -> Prosegue dalla precedente | AI9: =INT(B8)*60 -> 600 | AJ9: =B8-INT(B8) -> 0 | AK9: =AJ9*100 -> 0 | AL9: =AI9+AK9 -> 600
A10: Profondità | B10: =VALUE(Q3) -> 18 | R10: 13 | U10: Profondità | V10: =VALUE(Q4) -> 15 | X10: =IF(V10>B10,"Profondità sup alla prec.","") ->  | AD10: Profondità | AE10: =IF(V13<=0.1,IF(V10>B10,V10,B10)) -> FALSE | AL10: =AL8-AL9 -> 300
A11: Tempo di fondo | B11: 15 | R11: 14 | U11: Tempo di fondo | V11: 23 | X11: =IF(V13<0,"Come fai a rientrare in acqua prima di esserci uscito????",IF(V13<0.1,CONCATENATE("Prosegue dalla precedente è come se fosse una immersione a ",AE10," m. per ",AE11," min"),"")) ->  | AD11: Tempo di fondo | AE11: =IF(V13<=0.1,V11+B11,) -> 0 | AM11: A.S.D. Circolo Attività Subacquee Chieri
R12: 15
R13: 16 | U13: Intervallo di superficie | V13: =INT(AI13)+AL13 -> 4.38 | AE13: =INT(AI13)+AL13 -> 4.38 | AH13: =AL10-D31 -> 278 | AI13: =AH13/60 -> 4.633333333 | AJ13: =INT(AI13)*60 -> 240 | AK13: =AH13-AJ13 -> 38 | AL13: =AK13/100 -> 0.38 | AM13: Via San Filippo,2 - 10023 Chieri (To)
A14: FAR in entrata | R14: 17 | U14: FAR in entrata | V14: =IF(V13<0.1,"",IF(ISNA(AE14),"",AE14)) ->  | AE14: =INDIRECT(AF14) ->  | AF14: =(ADDRESS(AH14+1,1,1,"vero","Tab 2")) ->  | AG14: =MATCH(B33,'Tab 2'!$A$1:$Q$1,-1) -> 15 | AH14: =MATCH(V13,INDIRECT(AL14),-1) ->  | AJ14: =ADDRESS(2,AG14,1,"vero","Tab 2") -> 'Tab 2'!$O$2 | AK14: =ADDRESS(17,AG14,1,"vero") -> $O$17 | AL14: =CONCATENATE(AJ14,":",AK14) -> 'Tab 2'!$O$2:$O$17 | AM14: http://www.casc.it
A15: Minuti da Aggiungere | B15: =IF(ISNA(J15),0,J15) -> 0 | J15: =INDIRECT(K15) ->  | K15: =ADDRESS(L15,M15,1,"vero","tab 3") ->  | L15: =MATCH(B10,'Tab 3'!$A$1:$A$15,-1) -> 11 | M15: =MATCH(B14,'Tab 3'!$A$1:$Q$1,1) ->  | R15: 18 | U15: Minuti da Aggiungere | V15: =IF(ISNA(AE15),0,AE15) -> 0 | AE15: =INDIRECT(AF15) ->  | AF15: =ADDRESS(AG15,AH15,1,"vero","tab 3") ->  | AG15: =MATCH(V10,'Tab 3'!$A$1:$A$15,-1) -> 12 | AH15: =MATCH(V14,'Tab 3'!$A$1:$Q$1,1) ->  | AM15: info@casc.it
R16: 19
A17: Aria Bombole | B17: =B6*B5 -> 2000 | C17: l. | R17: 20 | U17: Aria Bombole | V17: =V6*V5 -> 3000 | W17: l. | AM17: Tutti i diritti riservati
A18: Riserva | B18: =B5*50 -> 500 | C18: l. | R18: 21 | U18: Riserva | V18: =V5*50 -> 750 | W18: l. | AM18: E' vietata la riproduzione senza consenso e/o la rimozione del logo e di questo disclaimer
A19: Aria Disponibile | B19: =B17-B18 -> 1500 | C19: l. | R19: 22 | U19: Aria Disponibile | V19: =V17-V18 -> 2250 | W19: l.
D20: =IF(H28<>0,"Fuori Curva","") ->  | N20: 0 | R20: 23 | X20: =IF(AB28<>0,"Fuori Curva","") -> 
N21: 2.5 | O21: 0 | R21: 24 | AF21: 0
A22: Consumi | R22: 25 | U22: Consumi | AM22: Realizzato da
B23: Atm | D23: minuti | F23: litri/min | H23: litri | R23: 26 | V23: Atm | X23: minuti | Z23: litri/min | AB23: litri | AM23: Guido Gilli - Consulenze Informatiche
A24: max profondita | B24: =(B10/10)+1 -> 2.8 | C24: * | D24: =B11-D26 -> 15 | E24: * | F24: 20 | G24: = | H24: =CEILING(F24*D24*B24,1) -> 840 | R24: 27 | U24: max profondita | V24: =(V10/10)+1 -> 2.5 | W24: * | X24: =V11-X26 -> 23 | Y24: * | Z24: 20 | AA24: = | AB24: =CEILING(Z24*X24*V24,1) -> 1150 | AM24: http://www.gilliguido.it
A25: Risalita alla tappa o sosta di sicurezza | B25: =(((B10+6)/2)/10)+1 -> 2.2 | C25: * | D25: =ROUNDUP((B10-6)/9,2) -> 1.34 | E25: * | F25: 20 | G25: = | H25: =CEILING(F25*D25*B25,1) -> 59 | R25: 28 | U25: Risalita alla tappa o sosta di sicurezza | V25: =(((V10+6)/2)/10)+1 -> 2.05 | W25: * | X25: =ROUNDUP((V10-6)/9,2) -> 1 | Y25: * | Z25: 20 | AA25: = | AB25: =CEILING(Z25*X25*V25,1) -> 41 | AM25: Questo è semplicemente uno strumento di verifica del calcolo delle immersioni secondo lo standard FIPSAS 2017; non sostituisce la partecipazione ad un corso ove vengono insegnate le corrette metodologie di calcolo e di immersione.
A26: Deep stop | B26: =((B10/2)/10)+1 -> 1.9 | C26: * | D26: =VALUE(O21) -> 0 | E26: * | F26: 20 | G26: = | H26: =CEILING(F26*D26*B26,1) -> 0 | R26: 29 | U26: Deep stop | V26: =((V10/2)/10)+1 -> 1.75 | W26: * | X26: =VALUE(AF21) -> 0 | Y26: * | Z26: 20 | AA26: = | AB26: =CEILING(Z26*X26*V26,1) -> 0
A27: Tappa di sicurezza + risalita | B27: 1.6 | C27: * | D27: =ROUNDUP(((B27-1)*10)/3,2)+3 -> 5 | E27: * | F27: 20 | G27: = | H27: =CEILING(F27*D27*B27,1) -> 160 | R27: 30 | U27: Tappa di sicurezza + risalita | V27: 1.6 | W27: * | X27: =ROUNDUP(((V27-1)*10)/3,2)+3 -> 5 | Y27: * | Z27: 20 | AA27: = | AB27: =CEILING(Z27*X27*V27,1) -> 160 | AH27: =IF(AI27<=0.1,"Prosegue dalla precedente","") -> Prosegue dalla precedente
A28: decompressione -6 | B28: 1.6 | C28: * | D28: =INDIRECT(K28) -> 0 | E28: * | F28: 20 | G28: = | H28: =CEILING(F28*D28*B28,1) -> 0 | J28: =INDIRECT(K28) -> 0 | K28: =ADDRESS(N33+2,L33+1,1,"vero","Tab 1") -> 'Tab 1'!$AL$13 | R28: 31 | U28: decompressione -6 | V28: 1.6 | W28: * | X28: =IF(V13<0.1,INDIRECT(AI30),INDIRECT(AF30)) -> 0 | Y28: * | Z28: 20 | AA28: = | AB28: =CEILING(Z28*X28*V28,1) -> 0 | AE28: =INDIRECT(AF28) -> 0 | AF28: =ADDRESS(AI34+2,AG34+2,1,"vero","Tab 1") -> 'Tab 1'!$AQ$14 | AH28: =INDIRECT(AI28) ->  | AI28: =ADDRESS(AI35+2,AG35+2,1,"vero","Tab 1") -> 
A29: Incremento del | B29: 0.1 | G29: = | H29: =SUM(H24:H28)*B29 -> 105.9 | R29: 32 | U29: Incremento del | V29: 0.1 | AA29: = | AB29: =SUM(AB24:AB28)*V29 -> 135.1
R30: 33 | AE30: =INDIRECT(AF30) -> 0 | AF30: =ADDRESS(AI34+2,AG34+1,1,"vero","Tab 1") -> 'Tab 1'!$AP$14 | AH30: =INDIRECT(AI30) ->  | AI30: =ADDRESS(AI35+2,AG35+1,1,"vero","Tab 1") -> 
D31: =CEILING(SUM(D24:D28),1) -> 22 | H31: =CEILING(SUM(H24:H29),1) -> 1165 | R31: 34 | X31: =CEILING(SUM(X24:X28),1) -> 29 | AB31: =CEILING(SUM(AB24:AB29),1) -> 1487
D32: =IF(H31>B19,"aria non sufficiente","") ->  | R32: 35 | X32: =IF(AB31>V19,"aria non sufficiente","") ->  | AM32: Non si risponde di danni a cose e/o persone derivanti dall'uso di questo foglio di calcolo
A33: FAR in uscita | B33: =INDIRECT(K33) -> C | J33: =INDIRECT(K33) -> C | K33: =ADDRESS(N33+2,L33+3,1,"vero","Tab 1") -> 'Tab 1'!$AN$13 | L33: =MATCH(B10,'Tab 1'!$A$1:$BD$1,-1) -> 37 | M33: =B11+B15 -> 15 | N33: =MATCH(B11+B15,INDIRECT(Q33),-1) -> 11 | O33: =ADDRESS(3,L33,1,"vero","Tab 1") -> 'Tab 1'!$AK$3 | P33: =ADDRESS(16,L33,1,"vero") -> $AK$16 | Q33: =CONCATENATE(O33,":",P33) -> 'Tab 1'!$AK$3:$AK$16 | R33: 36 | U33: FAR in uscita | V33: =IF(V13<0.1,INDIRECT(AF35),INDIRECT(AF34)) -> D
A34: =IF(ISNA(B33),"IMPOSSIBILE CALCOLARE: VALORI FUORI TABELLA","") ->  | R34: 37 | U34: =IF(ISNA(V33),"IMPOSSIBILE CALCOLARE: VALORI FUORI TABELLA","") ->  | AE34: =INDIRECT(AF34) -> D | AF34: =ADDRESS(AI34+2,AG34+3,1,"vero","Tab 1") -> 'Tab 1'!$AR$14 | AG34: =MATCH(V10,'Tab 1'!$A$1:$BD$1,-1) -> 41 | AH34: =V11+V15 -> 23 | AI34: =MATCH(AH34,INDIRECT(AL34),-1) -> 12 | AJ34: =ADDRESS(3,AG34,1,"vero","Tab 1") -> 'Tab 1'!$AO$3 | AK34: =ADDRESS(16,AG34,1,"vero") -> $AO$16 | AL34: =CONCATENATE(AJ34,":",AK34) -> 'Tab 1'!$AO$3:$AO$16
R35: 38 | AD35: Prosegue dalla precedente | AE35: =INDIRECT(AF35) ->  | AF35: =ADDRESS(AI35+2,AG35+3,1,"vero","Tab 1") ->  | AG35: =MATCH(AE10,'Tab 1'!$A$1:$BD$1,-1) ->  | AH35: =AE11+V15 -> 0 | AI35: =MATCH(AH35,INDIRECT(AL35),-1) ->  | AJ35: =ADDRESS(3,AG35,1,"vero","Tab 1") ->  | AK35: =ADDRESS(16,AG35,1,"vero") ->  | AL35: =CONCATENATE(AJ35,":",AK35) -> 
R36: 39
R37: 40
R38: 41
R39: 42
R40: 43
R41: 44
R42: 45

Sheet Tab 1 (hidden)
A1: 45 | E1: 42 | I1: 39 | M1: 36 | Q1: 33 | U1: 30 | Y1: 27 | AC1: 24 | AG1: 21 | AK1: 18 | AO1: 15 | AS1: 12 | AW1: 9 | BA1: 6
B2: -6 | C2: -3 | F2: -6 | G2: -3 | J2: -6 | K2: -3 | N2: -6 | O2: -3 | R2: -6 | S2: -3 | V2: -6 | W2: -3 | Z2: -6 | AA2: -3 | AC2: 45 | AD2: 10 | AF2: L | AH2: -6 | AI2: -3 | AL2: -6 | AM2: -3 | AP2: -6 | AQ2: -3 | AT2: -6 | AU2: -3 | AX2: -6 | AY2: -3 | BB2: -6 | BC2: -3
A3: 15 | B3: 3 | D3: H | E3: 20 | F3: 7 | H3: J | I3: 20 | J3: 4 | L3: I | M3: 25 | N3: 8 | P3: J | Q3: 30 | R3: 14 | T3: K | U3: 35 | V3: 15 | X3: L | Y3: 40 | Z3: 14 | AB3: L | AC3: 39 | AF3: K | AG3: 60 | AH3: 14 | AJ3: M | AK3: 80 | AL3: 14 | AN3: N | AO3: 110 | AP3: 8 | AR3: O | AS3: 180 | AT3: 14 | AV3: Z | AW3: 371 | AZ3: Z | BA3: 99999 | BD3: L
A4: 10 | B4: 1 | D4: F | E4: 15 | F4: 2 | H4: H | I4: 15 | J4: 1 | L4: G | M4: 20 | N4: 2 | P4: H | Q4: 25 | R4: 3 | T4: I | U4: 30 | V4: 3 | X4: J | Y4: 35 | Z4: 4 | AB4: J | AC4: 36 | AF4: I | AG4: 55 | AH4: 9 | AJ4: L | AK4: 70 | AL4: 7 | AN4: L | AO4: 100 | AP4: 4 | AR4: N | AS4: 163 | AV4: O | AW4: 307 | AZ4: O | BA4: 461 | BD4: K
A5: 5 | D5: C | E5: 10 | H5: E | I5: 10 | L5: E | M5: 15 | P5: F | Q5: 20 | T5: H | U5: 25 | X5: H | Y5: 30 | AB5: I | AC5: 32 | AF5: H | AG5: 48 | AJ5: K | AK5: 60 | AN5: K | AO5: 92 | AR5: M | AS5: 151 | AV5: N | AW5: 260 | AZ5: N | BA5: 330 | BD5: J
A6: 3 | D6: B | E6: 8 | H6: D | I6: 9 | L6: D | M6: 12 | P6: E | Q6: 19 | T6: G | U6: 21 | X6: G | Y6: 28 | AB6: H | AC6: 28 | AF6: G | AG6: 47 | AJ6: J | AK6: 57 | AN6: J | AO6: 89 | AR6: L | AS6: 135 | AV6: M | AW6: 223 | AZ6: M | BA6: 256 | BD6: I
A7: 2 | D7: A | E7: 6 | H7: C | I7: 6 | L7: C | M7: 10 | P7: D | Q7: 16 | T7: F | U7: 18 | X7: F | Y7: 24 | AB7: G | AC7: 24 | AF7: F | AG7: 42 | AJ7: I | AK7: 51 | AN7: I | AO7: 80 | AR7: K | AS7: 121 | AV7: L | AW7: 193 | AZ7: L | BA7: 205 | BD7: H
E8: 4 | H8: B | I8: 4 | L8: B | M8: 7 | P8: C | Q8: 14 | T8: E | U8: 15 | X8: E | Y8: 21 | AB8: F | AC8: 20 | AF8: E | AG8: 37 | AJ8: H | AK8: 45 | AN8: H | AO8: 71 | AR8: J | AS8: 108 | AV8: K | AW8: 167 | AZ8: K | BA8: 165 | BD8: G
E9: 2 | H9: A | I9: 2 | L9: A | M9: 5 | P9: B | Q9: 11 | T9: D | U9: 12 | X9: D | Y9: 17 | AB9: E | AC9: 16 | AF9: D | AG9: 32 | AJ9: G | AK9: 39 | AN9: G | AO9: 63 | AR9: I | AS9: 95 | AV9: J | AW9: 145 | AZ9: J | BA9: 133 | BD9: F
M10: 3 | P10: A | Q10: 8 | T10: C | U10: 9 | X10: C | Y10: 14 | AB10: D | AC10: 12 | AF10: C | AG10: 28 | AJ10: F | AK10: 33 | AN10: F | AO10: 56 | AR10: H | AS10: 84 | AV10: I | AW10: 125 | AZ10: I | BA10: 106 | BD10: E
Q11: 6 | T11: B | U11: 6 | X11: B | Y11: 11 | AB11: C | AC11: 9 | AF11: B | AG11: 23 | AJ11: E | AK11: 28 | AN11: E | AO11: 48 | AR11: G | AS11: 73 | AV11: H | AW11: 107 | AZ11: H | BA11: 82 | BD11: D
Q12: 3 | T12: A | U12: 4 | X12: A | Y12: 7 | AB12: B | AC12: 5 | AF12: A | AG12: 19 | AJ12: D | AK12: 22 | AN12: D | AO12: 41 | AR12: F | AS12: 63 | AV12: G | AW12: 91 | AZ12: G | BA12: 61 | BD12: C
Y13: 4 | AB13: A | AG13: 14 | AJ13: C | AK13: 17 | AN13: C | AO13: 34 | AR13: E | AS13: 53 | AV13: F | AW13: 76 | AZ13: F | BA13: 43 | BD13: B
AG14: 10 | AJ14: B | AK14: 12 | AN14: B | AO14: 28 | AR14: D | AS14: 44 | AV14: E | AW14: 62 | AZ14: E | BA14: 26 | BD14: A
AG15: 6 | AJ15: A | AK15: 7 | AN15: A | AO15: 21 | AR15: C | AS15: 36 | AV15: D | AW15: 50 | AZ15: D
AO16: 15 | AR16: B | AS16: 27 | AV16: C | AW16: 38 | AZ16: C
AO17: 9 | AR17: A | AS17: 20 | AV17: B | AW17: 27 | AZ17: B
AS18: 12 | AV18: A | AW18: 17 | AZ18: A

Sheet Tab 2 (hidden)
B1: Z | C1: O | D1: N | E1: M | F1: L | G1: K | H1: J | I1: I | J1: H | K1: G | L1: F | M1: E | N1: D | O1: C | P1: B | Q1: A
A2: A | B2: 15.5 | C2: 14.58 | D2: 14.05 | E2: 13.13 | F2: 12.21 | G2: 11.29 | H2: 10.36 | I2: 9.44 | J2: 8.52 | K2: 8 | L2: 7.08 | M2: 6.15 | N2: 5.23 | O2: 4.31 | P2: 3.36 | Q2: 2.2
A3: B | B3: 13.3 | C3: 12.37 | D3: 11.45 | E3: 10.53 | F3: 10.01 | G3: 9.09 | H3: 8.16 | I3: 7.24 | J3: 6.32 | K3: 5.4 | L3: 4.48 | M3: 3.55 | N3: 3.03 | O3: 2.11 | P3: 1.16
A4: C | B4: 12.13 | C4: 11.21 | D4: 10.29 | E4: 9.37 | F4: 8.44 | G4: 7.52 | H4: 7 | I4: 6.08 | J4: 5.16 | K4: 4.23 | L4: 3.31 | M4: 2.39 | N4: 1.47 | O4: 0.55
A5: D | B5: 11.19 | C5: 10.27 | D5: 9.34 | E5: 8.42 | F5: 7.5 | G5: 6.58 | H5: 6.06 | I5: 5.13 | J5: 4.21 | K5: 3.29 | L5: 2.37 | M5: 1.44 | N5: 0.52
A6: E | B6: 10.27 | C6: 9.34 | D6: 8.42 | E6: 7.5 | F6: 6.58 | G6: 6.06 | H6: 5.13 | I6: 4.21 | J6: 3.29 | K6: 2.37 | L6: 1.44 | M6: 0.52
A7: F | B7: 9.34 | C7: 8.42 | D7: 7.5 | E7: 6.58 | F7: 6.06 | G7: 5.13 | H7: 4.21 | I7: 3.29 | J7: 2.37 | K7: 1.44 | L7: 0.52
A8: G | B8: 8.42 | C8: 7.5 | D8: 6.58 | E8: 6.06 | F8: 5.13 | G8: 4.21 | H8: 3.29 | I8: 2.37 | J8: 1.44 | K8: 0.52
A9: H | B9: 7.5 | C9: 6.58 | D9: 6.06 | E9: 5.13 | F9: 4.21 | G9: 3.29 | H9: 2.37 | I9: 1.44 | J9: 0.52
A10: I | B10: 6.58 | C10: 6.06 | D10: 5.13 | E10: 4.21 | F10: 3.29 | G10: 2.37 | H10: 1.44 | I10: 0.52
A11: J | B11: 6.06 | C11: 5.13 | D11: 4.21 | E11: 3.29 | F11: 2.37 | G11: 1.44 | H11: 0.52
A12: K | B12: 5.13 | C12: 4.21 | D12: 3.29 | E12: 2.37 | F12: 1.44 | G12: 0.52
A13: L | B13: 4.21 | C13: 3.29 | D13: 2.37 | E13: 1.44 | F13: 0.52
A14: M | B14: 3.29 | C14: 2.37 | D14: 1.44 | E14: 0.52
A15: N | B15: 2.37 | C15: 1.44 | D15: 0.52
A16: O | B16: 1.44 | C16: 0.52
A17: Z | B17: 0.52
B21: =INT(B2)*60 + ((B2-INT(B2))*100) -> 950 | C21: 898 | D21: 845 | E21: 793 | F21: 741 | G21: 689 | H21: 636 | I21: 584 | J21: 532 | K21: 480 | L21: 428 | M21: 375 | N21: 323 | O21: 271 | P21: 216 | Q21: =INT(Q2)*60 + ((Q2-INT(Q2))*100) -> 140 | X21: 480 | Y21: 340 | Z21: 263 | AA21: 209 | AB21: 157 | AC21: 104 | AD21: 52 | AE21: 0 | AF21: 0 | AG21: 0 | AH21: 0 | AI21: 0 | AJ21: 0 | AK21: 0 | AL21: 0 | AM21: 0
B22: =INT(B3)*60 + ((B3-INT(B3))*100) -> 810 | C22: 757 | D22: 705 | E22: 653 | F22: 601 | G22: 549 | H22: 496 | I22: 444 | J22: 392 | K22: 340 | L22: 288 | M22: 235 | N22: 183 | O22: 131 | P22: 76 | Q22: =INT(Q3)*60 + ((Q3-INT(Q3))*100) -> 0
B23: =INT(B4)*60 + ((B4-INT(B4))*100) -> 733 | C23: 681 | D23: 629 | E23: 577 | F23: 524 | G23: 472 | H23: 420 | I23: 368 | J23: 316 | K23: 263 | L23: 211 | M23: 159 | N23: 107 | O23: 55 | P23: 0 | Q23: 0
B24: =INT(B5)*60 + ((B5-INT(B5))*100) -> 679 | C24: 627 | D24: 574 | E24: 522 | F24: 470 | G24: 418 | H24: 366 | I24: 313 | J24: 261 | K24: 209 | L24: 157 | M24: 104 | N24: 52 | O24: 0 | P24: 0 | Q24: 0
B25: =INT(B6)*60 + ((B6-INT(B6))*100) -> 627 | C25: 574 | D25: 522 | E25: 470 | F25: 418 | G25: 366 | H25: 313 | I25: 261 | J25: 209 | K25: 157 | L25: 104 | M25: 52 | N25: 0 | O25: 0 | P25: 0 | Q25: 0
B26: =INT(B7)*60 + ((B7-INT(B7))*100) -> 574 | C26: 522 | D26: 470 | E26: 418 | F26: 366 | G26: 313 | H26: 261 | I26: 209 | J26: 157 | K26: 104 | L26: 52 | M26: 0 | N26: 0 | O26: 0 | P26: 0 | Q26: 0
B27: =INT(B8)*60 + ((B8-INT(B8))*100) -> 522 | C27: 470 | D27: 418 | E27: 366 | F27: 313 | G27: 261 | H27: 209 | I27: 157 | J27: 104 | K27: 52 | L27: 0 | M27: 0 | N27: 0 | O27: 0 | P27: 0 | Q27: 0
B28: =INT(B9)*60 + ((B9-INT(B9))*100) -> 470 | C28: 418 | D28: 366 | E28: 313 | F28: 261 | G28: 209 | H28: 157 | I28: 104 | J28: 52 | K28: 0 | L28: 0 | M28: 0 | N28: 0 | O28: 0 | P28: 0 | Q28: 0
B29: =INT(B10)*60 + ((B10-INT(B10))*100) -> 418 | C29: 366 | D29: 313 | E29: 261 | F29: 209 | G29: 157 | H29: 104 | I29: 52 | J29: 0 | K29: 0 | L29: 0 | M29: 0 | N29: 0 | O29: 0 | P29: 0 | Q29: 0
B30: =INT(B11)*60 + ((B11-INT(B11))*100) -> 366 | C30: 313 | D30: 261 | E30: 209 | F30: 157 | G30: 104 | H30: 52 | I30: 0 | J30: 0 | K30: 0 | L30: 0 | M30: 0 | N30: 0 | O30: 0 | P30: 0 | Q30: 0
B31: =INT(B12)*60 + ((B12-INT(B12))*100) -> 313 | C31: 261 | D31: 209 | E31: 157 | F31: 104 | G31: 52 | H31: 0 | I31: 0 | J31: 0 | K31: 0 | L31: 0 | M31: 0 | N31: 0 | O31: 0 | P31: 0 | Q31: 0
B32: =INT(B13)*60 + ((B13-INT(B13))*100) -> 261 | C32: 209 | D32: 157 | E32: 104 | F32: 52 | G32: 0 | H32: 0 | I32: 0 | J32: 0 | K32: 0 | L32: 0 | M32: 0 | N32: 0 | O32: 0 | P32: 0 | Q32: 0
B33: =INT(B14)*60 + ((B14-INT(B14))*100) -> 209 | C33: 157 | D33: 104 | E33: 52 | F33: 0 | G33: 0 | H33: 0 | I33: 0 | J33: 0 | K33: 0 | L33: 0 | M33: 0 | N33: 0 | O33: 0 | P33: 0 | Q33: 0
B34: =INT(B15)*60 + ((B15-INT(B15))*100) -> 157 | C34: 104 | D34: 52 | E34: 0 | F34: 0 | G34: 0 | H34: 0 | I34: 0 | J34: 0 | K34: 0 | L34: 0 | M34: 0 | N34: 0 | O34: 0 | P34: 0 | Q34: 0
B35: =INT(B16)*60 + ((B16-INT(B16))*100) -> 104 | C35: 52 | D35: 0 | E35: 0 | F35: 0 | G35: 0 | H35: 0 | I35: 0 | J35: 0 | K35: 0 | L35: 0 | M35: 0 | N35: 0 | O35: 0 | P35: 0 | Q35: 0
B36: =INT(B17)*60 + ((B17-INT(B17))*100) -> 52 | C36: 0 | D36: 0 | E36: 0 | F36: 0 | G36: 0 | H36: 0 | I36: 0 | J36: 0 | K36: 0 | L36: 0 | M36: 0 | N36: 0 | O36: 0 | P36: 0 | Q36: 0

Sheet Tab 3 (hidden)
B1: A | C1: B | D1: C | E1: D | F1: E | G1: F | H1: G | I1: H | J1: I | K1: J | L1: K | M1: L | N1: M | O1: N | P1: O | Q1: Z
A2: 45 | B2: 4 | C2: 6 | D2: 8 | E2: 9 | F2: 11 | G2: 13 | H2: 15 | I2: 17 | J2: 19 | K2: 21 | L2: 23
A3: 42 | B3: 4 | C3: 6 | D3: 8 | E3: 10 | F3: 12 | G3: 14 | H3: 16 | I3: 19 | J3: 21 | K3: 23 | L3: 25
A4: 39 | B4: 4 | C4: 6 | D4: 9 | E4: 11 | F4: 13 | G4: 15 | H4: 18 | I4: 20 | J4: 22 | K4: 25 | L4: 27
A5: 36 | B5: 5 | C5: 7 | D5: 9 | E5: 12 | F5: 14 | G5: 17 | H5: 19 | I5: 22 | J5: 24 | K5: 27 | L5: 30 | M5: 32
A6: 33 | B6: 5 | C6: 8 | D6: 10 | E6: 13 | F6: 16 | G6: 18 | H6: 21 | I6: 24 | J6: 27 | K6: 30 | L6: 33 | M6: 36 | N6: 39
A7: 30 | B7: 5 | C7: 8 | D7: 11 | E7: 14 | F7: 17 | G7: 20 | H7: 23 | I7: 26 | J7: 30 | K7: 33 | L7: 36 | M7: 40 | N7: 43 | O7: 47
A8: 27 | B8: 6 | C8: 9 | D8: 12 | E8: 16 | F8: 19 | G8: 22 | H8: 26 | I8: 29 | J8: 33 | K8: 37 | L8: 41 | M8: 44 | N8: 48 | O8: 52
A9: 24 | B9: 7 | C9: 10 | D9: 14 | E9: 18 | F9: 22 | G9: 25 | H9: 29 | I9: 33 | J9: 38 | K9: 42 | L9: 46 | M9: 51 | N9: 55 | O9: 60 | P9: 65
A10: 21 | B10: 8 | C10: 12 | D10: 16 | E10: 20 | F10: 25 | G10: 29 | H10: 34 | I10: 39 | J10: 44 | K10: 49 | L10: 54 | M10: 59 | N10: 65 | O10: 71 | P10: 77 | Q10: 83
A11: 18 | B11: 9 | C11: 14 | D11: 19 | E11: 24 | F11: 29 | G11: 35 | H11: 40 | I11: 46 | J11: 52 | K11: 58 | L11: 65 | M11: 72 | N11: 79 | O11: 86 | P11: 93 | Q11: 101
A12: 15 | B12: 11 | C12: 17 | D12: 23 | E12: 29 | F12: 35 | G12: 42 | H12: 49 | I12: 57 | J12: 65 | K12: 73 | L12: 81 | M12: 90 | N12: 99 | O12: 109 | P12: 120 | Q12: 131
A13: 12 | B13: 13 | C13: 21 | D13: 29 | E13: 37 | F13: 45 | G13: 55 | H13: 64 | I13: 74 | J13: 85 | K13: 97 | L13: 109 | M13: 122 | N13: 136 | O13: 152 | P13: 169 | Q13: 188
A14: 9 | B14: 18 | C14: 28 | D14: 39 | E14: 51 | F14: 63 | G14: 77 | H14: 92 | I14: 108 | J14: 126 | K14: 146 | L14: 168 | M14: 194 | N14: 224 | O14: 261 | P14: 308 | Q14: 372
A15: 6 | B15: 27 | C15: 44 | D15: 62 | E15: 83 | F15: 106 | G15: 134 | H15: 166 | I15: 206 | J15: 257 | K15: 331 | L15: 462
